[Event "14th SRB-ch Women 2020"]
[Site "Vrnjacka Banja"]
[Date "2020.12.13"]
[Round "9.4"]
[White "Eric, Jovana"]
[Black "Benderac, Ana"]
[Result "1-0"]
[ECO "B01"]
[WhiteElo "2278"]
[BlackElo "2202"]
[Annotator "ChessBase"]
[PlyCount "113"]
[EventDate "2020.12.07"]
[EventType "tourn"]
[EventCountry "SRB"]
[SourceTitle "playchess.com"]
[Source "ChessBase"]
[SourceQuality "1"]
[TimeControl "40/5400+30:1800+30"]

1. e4 {[%emt 0:00:00]} d5 {[%emt 0:00:00]} 2. exd5 {[%emt 0:00:00]} Nf6 {[%emt 0:00:00]} 3. Bb5+ {[%emt 0:00:14]} Bd7 {[%emt 0:00:06]} 4. Be2 {[%emt 0:00:37]} Nxd5 {[%emt 0:00:31]} 5. Nf3 {[%emt 0:00:23]} c5 {[%emt 0:11:19]} 6. O-O {[%emt 0:03:04]} Nc6 {[%emt 0:03:52]} 7. b3 {[%emt 0:04:02]} e5 {[%emt 0:05:56]} 8. Bb2 {[%emt 0:03:07]} f6 {[%emt 0:00:27]} 9. c3 {[%emt 0:04:20]} e4 {[%emt 0:09:32]} 10. Ne1 {[%emt 0:06:20]} Bd6 {[%emt 0:02:36]} 11. d3 {[%emt 0:00:54]} e3 {[%emt 0:00:29]} 12. Bh5+ {[%emt 0:03:46]} g6 {[%emt 0:11:17]} 13. Bf3 {[%emt 0:04:25]} exf2+ {[%emt 0:00:37]} 14. Rxf2 {[%emt 0:00:03]} Nf4 {[%emt 0:01:25]} 15. Nd2 {[%emt 0:03:58]} Qe7 {[%emt 0:03:33]} 16. Ne4 {[%emt 0:02:47]} O-O-O {[%emt 0:04:36]} 17. d4 {[%emt 0:05:37]} cxd4 {[%emt 0:10:16]} 18. cxd4 {[%emt 0:00:34]} g5 {[%emt 0:00:25]} 19. Nd3 {[%emt 0:10:22]} Nxd3 {[%emt 0:09:06]} 20. Nxd6+ {[%emt 0:01:44]} Qxd6 {[%emt 0:00:04]} 21. Qxd3 {[%emt 0:00:04]} Kb8 {[%emt 0:00:36]} 22. Be4 {[%emt 0:02:23]} h6 {[%emt 0:09:58]} 23. Raf1 {[%emt 0:00:47]} Rhf8 {[%emt 0:02:16]} 24. a4 {[%emt 0:08:58]} f5 {[%emt 0:02:54]} 25. Bxc6 {[%emt 0:12:57]} bxc6 {[%emt 0:00:09]} 26. b4 {[%emt 0:01:00]} Rfe8 {[%emt 0:02:55]} 27. Bc3 {[%emt 0:05:01]} f4 {[%emt 0:00:49]} 28. b5 {[%emt 0:02:07]} Re3 {[%emt 0:00:25]} 29. Qd2 {[%emt 0:00:52]} cxb5 {[%emt 0:01:25]} 30. Bb4 {[%emt 0:02:45]} Qd5 {[%emt 0:01:12]} 31. Bc5 {[%emt 0:00:24]} Qb7 {[%emt 0:00:48]} 32. axb5 {[%emt 0:02:23]} Bxb5 {[%emt 0:00:28]} 33. Qa5 {[%emt 0:00:29]} Rde8 {[%emt 0:01:14]} 34. Bxa7+ {[%emt 0:02:10]} Qxa7 {[%emt 0:02:53]} 35. Qxb5+ {[%emt 0:00:07]} Qb7 {[%emt 0:00:05]} 36. Qc5 {[%emt 0:01:10]} R3e6 {[%emt 0:00:52]} 37. d5 {[%emt 0:01:09]} Rb6 {[%emt 0:00:42]} 38. Rd2 {[%emt 0:01:34]} Rd8 {[%emt 0:01:36]} 39. Qd4 {[%emt 0:01:45]} Rb5 {[%emt 0:00:39]} 40. Qe5+ {[%emt 0:02:32]} Qc7 {[%emt 0:00:14]} 41. Qe2 {[%emt 0:32:49]} Qc5+ {[%emt 0:03:13]} 42. Kh1 {[%emt 0:00:00]} Rxd5 {[%emt 0:06:31]} 43. Rxd5 {[%emt 0:00:00]} Qxd5 {[%emt 0:00:10]} 44. Rd1 {[%emt 0:00:00]} Qe5 {[%emt 0:03:11]} 45. Qd3 {[%emt 0:00:00]} Qc5 {[%emt 0:03:58]} 46. h3 {[%emt 0:00:00]} Qb6 {[%emt 0:03:51]} 47. Qd7 {[%emt 0:00:00]} Rc5 {[%emt 0:04:17]} 48. Qe8+ {[%emt 0:00:00]} Kb7 {[%emt 0:04:56]} 49. Qe4+ {[%emt 0:00:00]} Qc6 {[%emt 0:00:23]} 50. Qe7+ {[%emt 0:00:00]} Kb6 {[%emt 0:02:25]} 51. Rd6 {[%emt 0:00:00]} Qxd6 {[%emt 0:00:04]} 52. Qxd6+ {[%emt 0:00:00]} Rc6 {[%emt 0:00:01]} 53. Qd4+ {[%emt 0:00:00]} Kc7 {[%emt 0:00:03]} 54. h4 {[%emt 0:00:00]} gxh4 {[%emt 0:00:11]} 55. Qxf4+ {[%emt 0:00:00]} Kd7 {[%emt 0:00:03]} 56. Qf7+ {[%emt 0:00:00]} Kd6 {[%emt 0:01:53]} 57. Kh2 {[%emt 0:08:47]} 1-0

[Event "14th SRB-ch Women 2020"]
[Site "Vrnjacka Banja"]
[Date "2020.12.13"]
[Round "9.5"]
[White "Chelushkina, Irina"]
[Black "Drljevic, Ljilja"]
[Result "1/2-1/2"]
[ECO "A38"]
[WhiteElo "2224"]
[BlackElo "2174"]
[Annotator "ChessBase"]
[PlyCount "21"]
[EventDate "2020.12.07"]
[EventType "tourn"]
[EventCountry "SRB"]
[SourceTitle "playchess.com"]
[Source "ChessBase"]
[SourceQuality "1"]
[TimeControl "40/5400+30:1800+30"]

1. g3 {[%emt 0:00:00]} g6 {[%emt 0:00:00]} 2. Bg2 {[%emt 0:00:00]} Bg7 {[%emt 0:00:00]} 3. Nf3 {[%emt 0:00:00]} Nf6 {[%emt 0:00:00]} 4. O-O {[%emt 0:00:00]} O-O {[%emt 0:00:00]} 5. c4 {[%emt 0:00:00]} c5 {[%emt 0:00:00]} 6. Nc3 {[%emt 0:00:00]} Nc6 {[%emt 0:00:00]} 7. d3 {[%emt 0:00:00]} d6 {[%emt 0:00:03]} 8. Bg5 {[%emt 0:00:04]} h6 {[%emt 0:00:26]} 9. Bd2 {[%emt 0:00:05]} a6 {[%emt 0:00:05]} 10. Rb1 {[%emt 0:00:07]} Rb8 {[%emt 0:00:21]} 11. a3 {[%emt 0:00:05]} 1/2-1/2